Workbook

Sheet 表格样式3
A1: 贵阳市工业和信息化局面试成绩及进入体检环节人员名单
A2: 序号 | B2: 姓名 | C2: 准考证号 | D2: 单位 | E2: 报考岗位及代码 | F2: 笔试成绩 | G2: 笔试成绩（百分制） | H2: 笔试成绩30% | I2: 专业测试成绩 | J2: 专业测试成绩40% | K2: 笔试、专业测试成绩 | L2: 面试成绩 | M2: 面试成绩30% | N2: 笔试、专业测试、面试成绩 | O2: 综合排名 | P2: 是否进入体检
A3: 1 | B3: 章宇 | C3: 1152014600619 | D3: 中关村贵阳科技园创新服务中心 | E3: 20101030201 | F3: 184 | G3: =F3/3 -> 61.33 | H3: =F3/3*0.3 -> 18.40 | I3: 71 | J3: =I3*0.4 -> 28.40 | K3: =J3+H3 -> 46.80 | L3: 85 | M3: =L3*0.3 -> 25.50 | N3: =H3+J3+M3 -> 72.30 | O3: 1 | P3: 是
A4: 2 | B4: 吴亚南 | C4: 1152014603417 | D4: 中关村贵阳科技园创新服务中心 | E4: 20101030201 | F4: 200 | G4: 66.67 | H4: 20.00 | I4: 66 | J4: 26.40 | K4: 46.40 | L4: 78.6 | M4: =L4*0.3 -> 23.58 | N4: =H4+J4+M4 -> 69.98 | O4: 2 | P4: 是
A5: 3 | B5: 舒浩楠 | C5: 1152014602905 | D5: 中关村贵阳科技园创新服务中心 | E5: 20101030201 | F5: 186.5 | G5: 62.17 | H5: 18.65 | I5: 63 | J5: 25.20 | K5: 43.85 | L5: 0 | M5: =L5*0.3 -> 0.00 | N5: 43.85 | O5: 3
A7: 1 | B7: 万怡 | C7: 1152014601718 | D7: 贵阳市中小企业服务中心 | E7: 20101030101 | F7: 217.5 | G7: =F7/3 -> 72.50 | H7: =F7/3*0.3 -> 21.75 | I7: 78 | J7: =I7*0.4 -> 31.20 | K7: =J7+H7 -> 52.95 | L7: 84.2 | M7: 25.26 | N7: 78.21 | O7: 1 | P7: 是
A8: 2 | B8: 潘明报 | C8: 1152014602627 | D8: 贵阳市中小企业服务中心 | E8: 20101030101 | F8: 202 | G8: =F8/3 -> 67.33 | H8: =F8/3*0.3 -> 20.20 | I8: 67 | J8: =I8*0.4 -> 26.80 | K8: =J8+H8 -> 47.00 | L8: 82.6 | M8: =L8*0.3 -> 24.78 | N8: =H8+J8+M8 -> 71.78 | O8: 2 | P8: 是
A9: 3 | B9: 雷辉辉 | C9: 1152014602530 | D9: 贵阳市中小企业服务中心 | E9: 20101030101 | F9: 194 | G9: =F9/3 -> 64.67 | H9: =F9/3*0.3 -> 19.40 | I9: 70 | J9: =I9*0.4 -> 28.00 | K9: =J9+H9 -> 47.40 | L9: 80.4 | M9: =L9*0.3 -> 24.12 | N9: =H9+J9+M9 -> 71.52 | O9: 3
A10: 4 | B10: 肖祥玉 | C10: 1152014601615 | D10: 贵阳市中小企业服务中心 | E10: 20101030101 | F10: 164 | G10: 54.67 | H10: 16.40 | I10: 63 | J10: 25.20 | K10: 41.60 | L10: 82.6 | M10: 24.78 | N10: 66.38 | O10: 4
A12: 1 | B12: 艾龙 | C12: 1152014603009 | D12: 贵阳市煤炭安全生产技术中心 | E12: 20101030301 | F12: 182.5 | G12: =F12/3 -> 60.83 | H12: =F12/3*0.3 -> 18.25 | I12: 79.5 | J12: =I12*0.4 -> 31.80 | K12: =J12+H12 -> 50.05 | L12: 79.8 | M12: =L12*0.3 -> 23.94 | N12: 73.99 | O12: 1 | P12: 是
A13: 2 | B13: 姚正钰 | C13: 1152014601107 | D13: 贵阳市煤炭安全生产技术中心 | E13: 20101030301 | F13: 195 | G13: 65.00 | H13: 19.50 | I13: 70 | J13: 28.00 | K13: 47.50 | L13: 82.4 | M13: 24.72 | N13: 72.22 | O13: 2
A14: 3 | B14: 李娇娇 | C14: 1152014600120 | D14: 贵阳市煤炭安全生产技术中心 | E14: 20101030301 | F14: 189.5 | G14: 63.17 | H14: 18.95 | I14: 60.5 | J14: 24.20 | K14: 43.15 | L14: 70.4 | M14: 21.12 | N14: 64.27 | O14: 3
A16: 1 | B16: 王家猛 | C16: 1152014600418 | D16: 贵阳市煤炭安全生产技术中心 | E16: 20101030302 | F16: 154.5 | G16: =F16/3 -> 51.50 | H16: =F16/3*0.3 -> 15.45 | I16: 61 | J16: =I16*0.4 -> 24.40 | K16: =J16+H16 -> 39.85 | L16: 80 | M16: 24.00 | N16: 63.85 | O16: 1 | P16: 是
A17: 2 | B17: 王仁义 | C17: 1152014600405 | D17: 贵阳市煤炭安全生产技术中心 | E17: 20101030302 | F17: 124.5 | G17: =F17/3 -> 41.50 | H17: =F17/3*0.3 -> 12.45 | I17: 61 | J17: =I17*0.4 -> 24.40 | K17: =J17+H17 -> 36.85 | L17: 76.2 | M17: =L17*0.3 -> 22.86 | N17: =H17+J17+M17 -> 59.71 | O17: 2
A18: 3 | B18: 文利东 | C18: 1152014602801 | D18: 贵阳市煤炭安全生产技术中心 | E18: 20101030302 | F18: 133 | G18: =F18/3 -> 44.33 | H18: =F18/3*0.3 -> 13.30 | I18: 60 | J18: =I18*0.4 -> 24.00 | K18: =J18+H18 -> 37.30 | L18: 72.8 | M18: =L18*0.3 -> 21.84 | N18: =H18+J18+M18 -> 59.14 | O18: 3
A20: 1 | B20: 李海中 | C20: 1152014600812 | D20: 贵阳市煤炭安全生产技术中心 | E20: 20101030303 | F20: 194 | G20: =F20/3 -> 64.67 | H20: =F20/3*0.3 -> 19.40 | I20: 76 | J20: =I20*0.4 -> 30.40 | K20: =J20+H20 -> 49.80 | L20: 87.8 | M20: 26.34 | N20: 76.14 | O20: 1 | P20: 是
A21: 2 | B21: 林广 | C21: 1152014602717 | D21: 贵阳市煤炭安全生产技术中心 | E21: 20101030303 | F21: 194 | G21: 64.67 | H21: 19.40 | I21: 73 | J21: 29.20 | K21: 48.60 | L21: 83.8 | M21: 25.14 | N21: 73.74 | O21: 2
A22: 3 | B22: 洪渊 | C22: 1152014603004 | D22: 贵阳市煤炭安全生产技术中心 | E22: 20101030303 | F22: 169.5 | G22: 56.50 | H22: 16.95 | I22: 78 | J22: 31.20 | K22: 48.15 | L22: 80.8 | M22: 24.24 | N22: 72.39 | O22: 3
